[Event "Late-Titled-Tuesday-Blitz-October-10-2023"]
[Site "Chess.com"]
[Date "2023.10.10"]
[Round "6"]
[White "Pomberito2"]
[Black "DonJuanEGenaro"]
[Result "0-1"]
[WhiteElo "2468"]
[BlackElo "1926"]
[TimeControl "180+1"]
[EndTime "15:03:18 PDT"]
[Termination "DonJuanEGenaro won by resignation"]

1. e4 {[%clk 0:03:00.9]} 1... c5 {[%clk 0:02:59.8]} 2. Nf3 {[%clk 0:03:00]} 2...
Nc6 {[%clk 0:03:00.4]} 3. d4 {[%clk 0:03:00.1]} 3... cxd4 {[%clk 0:03:01]} 4.
Nxd4 {[%clk 0:03:00.8]} 4... Nf6 {[%clk 0:03:01.2]} 5. Nc3 {[%clk 0:03:00.9]}
5... d6 {[%clk 0:03:01.5]} 6. Bc4 {[%clk 0:02:57.7]} 6... e6 {[%clk 0:03:00]} 7.
Bb3 {[%clk 0:02:57.8]} 7... a6 {[%clk 0:02:59.9]} 8. Be3 {[%clk 0:02:57.8]} 8...
Qc7 {[%clk 0:03:00]} 9. Qe2 {[%clk 0:02:57.7]} 9... Na5 {[%clk 0:02:59.3]} 10.
O-O-O {[%clk 0:02:53.8]} 10... b5 {[%clk 0:02:59]} 11. g4 {[%clk 0:02:48.5]}
11... b4 {[%clk 0:02:58.3]} 12. Nd5 {[%clk 0:02:36.5]} 12... Nxb3+ {[%clk
0:02:53.1]} 13. axb3 {[%clk 0:02:35.7]} 13... exd5 {[%clk 0:02:52.3]} 14. exd5
{[%clk 0:02:35.8]} 14... Be7 {[%clk 0:02:51.5]} 15. Nc6 {[%clk 0:02:18.6]} 15...
Bxg4 {[%clk 0:02:19.5]} 16. f3 {[%clk 0:02:16.4]} 16... Bf5 {[%clk 0:02:19.2]}
17. Bg5 {[%clk 0:02:07.6]} 17... Kf8 {[%clk 0:01:57.1]} 18. Rhe1 {[%clk
0:01:30]} 18... Re8 {[%clk 0:01:43.3]} 19. Bxf6 {[%clk 0:01:28.3]} 19... gxf6
{[%clk 0:01:42.9]} 20. Qd2 {[%clk 0:01:02.6]} 20... h6 {[%clk 0:01:36.4]} 21.
Qf4 {[%clk 0:00:53.5]} 21... Bg6 {[%clk 0:01:27.4]} 22. h4 {[%clk 0:00:35.7]}
22... h5 {[%clk 0:01:25.8]} 23. Rd2 {[%clk 0:00:23.6]} 23... Bd8 {[%clk
0:01:03]} 24. Rxe8+ {[%clk 0:00:21.6]} 24... Kxe8 {[%clk 0:01:01.7]} 25. Qxb4
{[%clk 0:00:21.1]} 25... Kf8 {[%clk 0:00:54.1]} 26. Rg2 {[%clk 0:00:19.5]} 26...
Kg7 {[%clk 0:00:49.2]} 27. f4 {[%clk 0:00:19.6]} 27... Qd7 {[%clk 0:00:49]} 28.
Nd4 {[%clk 0:00:15.9]} 28... Qh3 {[%clk 0:00:47.3]} 29. Qd2 {[%clk 0:00:15.6]}
29... f5 {[%clk 0:00:43.5]} 30. Kb1 {[%clk 0:00:13.7]} 30... Bf6 {[%clk
0:00:43.2]} 31. Nc6 {[%clk 0:00:12]} 31... Re8 {[%clk 0:00:39.2]} 32. Ka2 {[%clk
0:00:11.5]} 32... Qe3 {[%clk 0:00:37.4]} 33. Qb4 {[%clk 0:00:08.9]} 33... Qc5
{[%clk 0:00:35.7]} 34. Qxc5 {[%clk 0:00:08.9]} 34... dxc5 {[%clk 0:00:35.5]} 35.
d6 {[%clk 0:00:09.4]} 35... Rc8 {[%clk 0:00:34.7]} 36. Ne5 {[%clk 0:00:07.6]}
36... Rd8 {[%clk 0:00:30]} 37. Rd2 {[%clk 0:00:06.5]} 37... Bxh4 {[%clk
0:00:29]} 38. Nc6 {[%clk 0:00:06]} 38... Rd7 {[%clk 0:00:28.7]} 39. Nb8 {[%clk
0:00:06]} 39... Rb7 {[%clk 0:00:27]} 40. Nxa6 {[%clk 0:00:05]} 40... Ra7 {[%clk
0:00:20.1]} 41. Kb1 {[%clk 0:00:04.2]} 41... Rxa6 {[%clk 0:00:20]} 42. d7 {[%clk
0:00:05.1]} 42... Bd8 {[%clk 0:00:19.4]} 43. c3 {[%clk 0:00:04.7]} 43... h4
{[%clk 0:00:17.8]} 44. b4 {[%clk 0:00:05]} 44... cxb4 {[%clk 0:00:15.7]} 45. c4
{[%clk 0:00:05.6]} 45... Rc6 {[%clk 0:00:15.1]} 46. b3 {[%clk 0:00:05.2]} 46...
Ra6 {[%clk 0:00:15.1]} 47. Kb2 {[%clk 0:00:04.8]} 47... Bf6+ {[%clk 0:00:14.3]}
48. Kb1 {[%clk 0:00:03.6]} 48... Ra1+ {[%clk 0:00:13.8]} 49. Kc2 {[%clk
0:00:03.9]} 49... Ra2+ {[%clk 0:00:13.9]} 50. Kd3 {[%clk 0:00:04.6]} 50... Rxd2+
{[%clk 0:00:14]} 51. Kxd2 {[%clk 0:00:05.5]} 51... h3 {[%clk 0:00:14.1]} 52. c5
{[%clk 0:00:05]} 52... h2 {[%clk 0:00:14.2]} 53. d8=Q {[%clk 0:00:04]} 53...
Bxd8 {[%clk 0:00:12.7]} 0-1

[Event "Late-Titled-Tuesday-Blitz-October-10-2023"]
[Site "Chess.com"]
[Date "2023.10.10"]
[Round "6"]
[White "tylityli"]
[Black "FERNANDEZL1983"]
[Result "0-1"]
[WhiteElo "2343"]
[BlackElo "2534"]
[TimeControl "180+1"]
[EndTime "15:03:21 PDT"]
[Termination "FERNANDEZL1983 won on time"]

1. d4 {[%clk 0:03:00.9]} 1... Nf6 {[%clk 0:02:59.6]} 2. c4 {[%clk 0:03:01.2]}
2... g6 {[%clk 0:03:00.5]} 3. Nc3 {[%clk 0:03:01.2]} 3... Bg7 {[%clk 0:03:00.9]}
4. e4 {[%clk 0:03:01.5]} 4... d6 {[%clk 0:03:01]} 5. Nge2 {[%clk 0:03:02.4]}
5... O-O {[%clk 0:02:59.1]} 6. Ng3 {[%clk 0:03:03.3]} 6... e5 {[%clk 0:02:58.7]}
7. d5 {[%clk 0:03:03.4]} 7... a5 {[%clk 0:02:56.6]} 8. Be2 {[%clk 0:03:03.2]}
8... Na6 {[%clk 0:02:55.7]} 9. O-O {[%clk 0:03:03.4]} 9... h5 {[%clk 0:02:54]}
10. Bg5 {[%clk 0:03:03.1]} 10... Qe8 {[%clk 0:02:53.2]} 11. Qd2 {[%clk
0:03:02.7]} 11... Bd7 {[%clk 0:02:46.3]} 12. Bh6 {[%clk 0:03:00.3]} 12... h4
{[%clk 0:02:41.4]} 13. Nh1 {[%clk 0:02:59.7]} 13... Nh7 {[%clk 0:02:34.4]} 14.
Bxg7 {[%clk 0:02:59.3]} 14... Kxg7 {[%clk 0:02:35.3]} 15. h3 {[%clk 0:02:46.7]}
15... Qe7 {[%clk 0:02:34.4]} 16. f3 {[%clk 0:02:33.8]} 16... f5 {[%clk
0:02:21.7]} 17. f4 {[%clk 0:02:23.8]} 17... Rae8 {[%clk 0:02:14.3]} 18. Nf2
{[%clk 0:02:17.7]} 18... exf4 {[%clk 0:02:11.5]} 19. Qxf4 {[%clk 0:02:13.1]}
19... fxe4 {[%clk 0:01:59.3]} 20. Qxe4 {[%clk 0:02:10.7]} 20... Qg5 {[%clk
0:01:57]} 21. Qd4+ {[%clk 0:02:09.6]} 21... Kg8 {[%clk 0:01:30.5]} 22. Bg4
{[%clk 0:02:05.9]} 22... Nc5 {[%clk 0:01:22.6]} 23. Nfe4 {[%clk 0:01:59.9]}
23... Nxe4 {[%clk 0:01:10.5]} 24. Nxe4 {[%clk 0:01:51.8]} 24... Qe5 {[%clk
0:01:00]} 25. Qxe5 {[%clk 0:01:46.9]} 25... Rxe5 {[%clk 0:00:58.4]} 26. Bxd7
{[%clk 0:01:33.1]} 26... Rxe4 {[%clk 0:00:57.5]} 27. Be6+ {[%clk 0:01:31.4]}
27... Kg7 {[%clk 0:00:56.9]} 28. b3 {[%clk 0:01:19.8]} 28... Ng5 {[%clk
0:00:54.3]} 29. Bg4 {[%clk 0:01:13.9]} 29... Rd4 {[%clk 0:00:51.5]} 30. Rxf8
{[%clk 0:01:09.6]} 30... Kxf8 {[%clk 0:00:50.9]} 31. Rf1+ {[%clk 0:01:09.1]}
31... Ke7 {[%clk 0:00:50.1]} 32. Re1+ {[%clk 0:01:08.6]} 32... Re4 {[%clk
0:00:43.9]} 33. Rf1 {[%clk 0:00:58.6]} 33... b6 {[%clk 0:00:41.2]} 34. Bf3
{[%clk 0:00:51.3]} 34... Re3 {[%clk 0:00:33.4]} 35. Kf2 {[%clk 0:00:49.7]} 35...
Rc3 {[%clk 0:00:30.5]} 36. Re1+ {[%clk 0:00:49]} 36... Kf6 {[%clk 0:00:30.5]}
37. Re2 {[%clk 0:00:47.5]} 37... a4 {[%clk 0:00:25.5]} 38. Re3 {[%clk
0:00:44.9]} 38... Rc2+ {[%clk 0:00:21]} 39. Re2 {[%clk 0:00:40.9]} 39... Rxe2+
{[%clk 0:00:20.6]} 40. Kxe2 {[%clk 0:00:39]} 40... Ke5 {[%clk 0:00:20.3]} 41.
Ke3 {[%clk 0:00:34]} 41... a3 {[%clk 0:00:18.6]} 42. Bg4 {[%clk 0:00:27.2]}
42... Ne4 {[%clk 0:00:17.6]} 43. b4 {[%clk 0:00:18.8]} 43... Nc3 {[%clk
0:00:16.6]} 44. c5 {[%clk 0:00:11.9]} 44... bxc5 {[%clk 0:00:15.6]} 45. bxc5
{[%clk 0:00:11]} 45... Nxa2 {[%clk 0:00:16.1]} 46. cxd6 {[%clk 0:00:10.5]} 46...
cxd6 {[%clk 0:00:17]} 47. Kd3 {[%clk 0:00:08.7]} 47... Nb4+ {[%clk 0:00:16.5]}
48. Kc3 {[%clk 0:00:08.5]} 48... a2 {[%clk 0:00:17.4]} 49. Kb2 {[%clk
0:00:08.5]} 49... Kxd5 {[%clk 0:00:17]} 50. Bf3+ {[%clk 0:00:08.5]} 50... Kc4
{[%clk 0:00:16.5]} 51. Be4 {[%clk 0:00:07.9]} 51... g5 {[%clk 0:00:15.9]} 52.
Bf3 {[%clk 0:00:07.6]} 52... d5 {[%clk 0:00:15.6]} 53. Be2+ {[%clk 0:00:08]}
53... Kc5 {[%clk 0:00:14.6]} 0-1

[Event "Late-Titled-Tuesday-Blitz-October-10-2023"]
[Site "Chess.com"]
[Date "2023.10.10"]
[Round "6"]
[White "josiwales"]
[Black "K_A_S_T_O_R"]
[Result "1-0"]
[WhiteElo "2768"]
[BlackElo "2884"]
[TimeControl "180+1"]
[EndTime "15:03:28 PDT"]
[Termination "josiwales won by resignation"]

1. e4 {[%clk 0:02:57.3]} 1... c5 {[%clk 0:02:57.7]} 2. Nc3 {[%clk 0:02:56]} 2...
a6 {[%clk 0:02:55.4]} 3. g3 {[%clk 0:02:56.9]} 3... d6 {[%clk 0:02:54.2]} 4. Bg2
{[%clk 0:02:57.8]} 4... Nc6 {[%clk 0:02:54.7]} 5. d3 {[%clk 0:02:58.4]} 5... g6
{[%clk 0:02:54.5]} 6. f4 {[%clk 0:02:58.4]} 6... Bg7 {[%clk 0:02:54.7]} 7. Be3
{[%clk 0:02:56.7]} 7... Nf6 {[%clk 0:02:53.7]} 8. h3 {[%clk 0:02:56.3]} 8... Qb6
{[%clk 0:02:40.7]} 9. Rb1 {[%clk 0:02:50.6]} 9... O-O {[%clk 0:02:29.4]} 10. Nf3
{[%clk 0:02:48.5]} 10... Nd4 {[%clk 0:02:24.8]} 11. O-O {[%clk 0:02:47.4]} 11...
Nd7 {[%clk 0:02:18.6]} 12. Nd5 {[%clk 0:02:45.4]} 12... Qd8 {[%clk 0:02:18.9]}
13. g4 {[%clk 0:02:35.2]} 13... e6 {[%clk 0:02:17.4]} 14. Nc3 {[%clk 0:02:35.1]}
14... Rb8 {[%clk 0:02:11.3]} 15. f5 {[%clk 0:02:26.1]} 15... b5 {[%clk
0:01:49.4]} 16. Ne2 {[%clk 0:02:19.8]} 16... Nxf3+ {[%clk 0:01:46.6]} 17. Bxf3
{[%clk 0:02:10.4]} 17... Ne5 {[%clk 0:01:41]} 18. Bg2 {[%clk 0:02:10.4]} 18...
Bd7 {[%clk 0:01:24.9]} 19. Qd2 {[%clk 0:02:10.1]} 19... Qe7 {[%clk 0:01:20.1]}
20. Ng3 {[%clk 0:01:51.3]} 20... Nc6 {[%clk 0:01:10.7]} 21. Bh6 {[%clk
0:01:23.9]} 21... Qh4 {[%clk 0:00:54.8]} 22. Nh5 {[%clk 0:00:53.9]} 22... Bd4+
{[%clk 0:00:41.4]} 23. Kh1 {[%clk 0:00:48.6]} 23... gxh5 {[%clk 0:00:30.8]} 24.
Bg5 {[%clk 0:00:45.7]} 24... Qg3 {[%clk 0:00:30.2]} 25. Rf3 {[%clk 0:00:28.5]}
25... Qe5 {[%clk 0:00:24.4]} 26. c3 {[%clk 0:00:28.5]} 26... hxg4 {[%clk
0:00:20.2]} 27. hxg4 {[%clk 0:00:28.5]} 27... Qg7 {[%clk 0:00:20.5]} 28. cxd4
{[%clk 0:00:20.2]} 28... Nxd4 {[%clk 0:00:20.6]} 29. f6 {[%clk 0:00:16.6]} 29...
Qg6 {[%clk 0:00:20.2]} 30. Rh3 {[%clk 0:00:16.4]} 30... Kh8 {[%clk 0:00:19.5]}
31. Rh6 {[%clk 0:00:11.5]} 31... Qg8 {[%clk 0:00:19.7]} 32. Kh2 {[%clk
0:00:07.6]} 32... e5 {[%clk 0:00:19.6]} 33. Rh1 {[%clk 0:00:07.2]} 33... Ne6
{[%clk 0:00:18.2]} 34. Kg3 {[%clk 0:00:06.2]} 34... Rfe8 {[%clk 0:00:12.2]} 35.
Bf3 {[%clk 0:00:04]} 35... Nf8 {[%clk 0:00:12.4]} 36. R1h5 {[%clk 0:00:02.4]}
36... Re6 {[%clk 0:00:12.5]} 37. Qh2 {[%clk 0:00:02.7]} 37... Rc8 {[%clk
0:00:09.9]} 38. Be3 {[%clk 0:00:03.1]} 38... c4 {[%clk 0:00:09.8]} 39. d4 {[%clk
0:00:03.7]} 39... exd4 {[%clk 0:00:10.1]} 40. Bxd4 {[%clk 0:00:04.6]} 40... c3
{[%clk 0:00:10.4]} 41. Rg5 {[%clk 0:00:04.4]} 41... Ng6 {[%clk 0:00:09.6]} 42.
Rgxg6 {[%clk 0:00:04.2]} 42... Qxg6 {[%clk 0:00:10.1]} 43. Rxg6 {[%clk
0:00:04.2]} 43... fxg6 {[%clk 0:00:10.7]} 44. f7+ {[%clk 0:00:05.1]} 44... Re5
{[%clk 0:00:10.7]} 45. Bxe5+ {[%clk 0:00:05.5]} 45... dxe5 {[%clk 0:00:11.6]}
46. Qh4 {[%clk 0:00:05.7]} 46... Kg7 {[%clk 0:00:11.4]} 47. Qe7 {[%clk
0:00:06.4]} 47... Rf8 {[%clk 0:00:09]} 48. Qxd7 {[%clk 0:00:06.7]} 48... cxb2
{[%clk 0:00:09.1]} 49. Qd3 {[%clk 0:00:07]} 49... Rxf7 {[%clk 0:00:09.1]} 50.
Qb1 {[%clk 0:00:07.6]} 50... Rd7 {[%clk 0:00:09.2]} 51. Qxb2 {[%clk 0:00:07.9]}
51... Rd4 {[%clk 0:00:10.1]} 52. Qa3 {[%clk 0:00:07.5]} 52... Ra4 {[%clk
0:00:09.5]} 53. Qe7+ {[%clk 0:00:07.8]} 53... Kg8 {[%clk 0:00:09.9]} 54. Qxe5
{[%clk 0:00:07.9]} 54... b4 {[%clk 0:00:09.6]} 55. Qd5+ {[%clk 0:00:08.1]} 55...
Kg7 {[%clk 0:00:09.8]} 56. e5 {[%clk 0:00:08.7]} 1-0

[Event "Late-Titled-Tuesday-Blitz-October-10-2023"]
[Site "Chess.com"]
[Date "2023.10.10"]
[Round "6"]
[White "TheBigBoss04"]
[Black "ContrVersia"]
[Result "1-0"]
[WhiteElo "2767"]
[BlackElo "2881"]
[TimeControl "180+1"]
[EndTime "15:03:28 PDT"]
[Termination "TheBigBoss04 won on time"]

1. Nf3 {[%clk 0:03:00.9]} 1... d5 {[%clk 0:02:59.5]} 2. e3 {[%clk 0:03:00.7]}
2... Nf6 {[%clk 0:02:57.8]} 3. c4 {[%clk 0:03:01]} 3... c6 {[%clk 0:02:58.2]} 4.
b3 {[%clk 0:03:01.7]} 4... g6 {[%clk 0:02:57.6]} 5. Bb2 {[%clk 0:03:01.9]} 5...
Bg7 {[%clk 0:02:57.9]} 6. Nc3 {[%clk 0:03:02.7]} 6... O-O {[%clk 0:02:57.8]} 7.
cxd5 {[%clk 0:03:03.4]} 7... cxd5 {[%clk 0:02:57.9]} 8. d4 {[%clk 0:02:59.9]}
8... Nc6 {[%clk 0:02:55.5]} 9. Be2 {[%clk 0:02:59.6]} 9... Ne4 {[%clk
0:02:53.4]} 10. O-O {[%clk 0:02:59.7]} 10... Bg4 {[%clk 0:02:47.8]} 11. h3
{[%clk 0:02:56.9]} 11... Bxf3 {[%clk 0:02:40.7]} 12. Bxf3 {[%clk 0:02:57.8]}
12... f5 {[%clk 0:02:38.2]} 13. Rc1 {[%clk 0:02:47.6]} 13... Rc8 {[%clk
0:02:33.3]} 14. Nxe4 {[%clk 0:02:33.9]} 14... dxe4 {[%clk 0:02:32.6]} 15. Be2
{[%clk 0:02:33.4]} 15... Qd6 {[%clk 0:02:28.4]} 16. Rc5 {[%clk 0:02:22]} 16...
b6 {[%clk 0:02:02.5]} 17. Rd5 {[%clk 0:02:19.4]} 17... Qc7 {[%clk 0:01:54.5]}
18. Ba6 {[%clk 0:02:16.3]} 18... Rcd8 {[%clk 0:01:44.1]} 19. Rxd8 {[%clk
0:02:14.3]} 19... Rxd8 {[%clk 0:01:20.8]} 20. Qc2 {[%clk 0:02:11.6]} 20... Qd6
{[%clk 0:01:15.2]} 21. Rc1 {[%clk 0:02:09.9]} 21... Nb8 {[%clk 0:01:09.5]} 22.
Bb7 {[%clk 0:02:00.6]} 22... e6 {[%clk 0:00:58.1]} 23. Qc7 {[%clk 0:01:52.5]}
23... Bf8 {[%clk 0:00:52.8]} 24. d5 {[%clk 0:01:22]} 24... exd5 {[%clk
0:00:30.2]} 25. Qxd6 {[%clk 0:01:04.4]} 25... Bxd6 {[%clk 0:00:31.1]} 26. Bxd5+
{[%clk 0:01:03.2]} 26... Kf8 {[%clk 0:00:29.6]} 27. Kf1 {[%clk 0:00:31.8]} 27...
Nd7 {[%clk 0:00:29.5]} 28. Ke2 {[%clk 0:00:24.4]} 28... Ke7 {[%clk 0:00:28.7]}
29. Rc6 {[%clk 0:00:21.7]} 29... Nb8 {[%clk 0:00:21.4]} 30. Rc2 {[%clk
0:00:21.4]} 30... Na6 {[%clk 0:00:20.9]} 31. a3 {[%clk 0:00:19.2]} 31... Nc5
{[%clk 0:00:21.1]} 32. Bc4 {[%clk 0:00:17.4]} 32... Nd7 {[%clk 0:00:19.1]} 33.
b4 {[%clk 0:00:16.2]} 33... Rc8 {[%clk 0:00:18.6]} 34. Bb3 {[%clk 0:00:13.8]}
34... Rxc2+ {[%clk 0:00:18.4]} 35. Bxc2 {[%clk 0:00:14.7]} 35... Be5 {[%clk
0:00:19.1]} 36. Bc1 {[%clk 0:00:14.5]} 36... Bc3 {[%clk 0:00:18.5]} 37. Bb3
{[%clk 0:00:13.1]} 37... Ne5 {[%clk 0:00:16.9]} 38. f3 {[%clk 0:00:11.2]} 38...
h5 {[%clk 0:00:13.7]} 39. fxe4 {[%clk 0:00:10.8]} 39... fxe4 {[%clk 0:00:14.6]}
40. Bc2 {[%clk 0:00:10.5]} 40... Nd3 {[%clk 0:00:10.4]} 41. Bxd3 {[%clk
0:00:10.4]} 41... exd3+ {[%clk 0:00:11.3]} 42. Kxd3 {[%clk 0:00:11.3]} 42... Bf6
{[%clk 0:00:10.4]} 43. b5 {[%clk 0:00:10.6]} 43... Kd6 {[%clk 0:00:09.8]} 44. a4
{[%clk 0:00:11]} 44... Kd5 {[%clk 0:00:07.2]} 45. e4+ {[%clk 0:00:08.3]} 45...
Ke6 {[%clk 0:00:07.6]} 46. Be3 {[%clk 0:00:06.1]} 46... Be5 {[%clk 0:00:07.1]}
47. Bd4 {[%clk 0:00:06]} 47... Bc7 {[%clk 0:00:07]} 48. g4 {[%clk 0:00:06]}
48... hxg4 {[%clk 0:00:06.5]} 49. hxg4 {[%clk 0:00:06.9]} 49... Bd8 {[%clk
0:00:06.2]} 50. Kc4 {[%clk 0:00:06.5]} 50... Bc7 {[%clk 0:00:06.5]} 51. a5
{[%clk 0:00:06.6]} 51... Kd6 {[%clk 0:00:06.4]} 52. a6 {[%clk 0:00:06.4]} 52...
Ke6 {[%clk 0:00:06.8]} 53. Kd3 {[%clk 0:00:06.7]} 53... Kd6 {[%clk 0:00:06.4]}
54. Bf2 {[%clk 0:00:07]} 54... Ke6 {[%clk 0:00:06.4]} 55. Ke3 {[%clk 0:00:07.4]}
55... Bd6 {[%clk 0:00:04.3]} 56. Kf3 {[%clk 0:00:07.2]} 56... Ke7 {[%clk
0:00:01.3]} 57. Bxb6 {[%clk 0:00:07]} 1-0

[Event "Late-Titled-Tuesday-Blitz-October-10-2023"]
[Site "Chess.com"]
[Date "2023.10.10"]
[Round "6"]
[White "wild3000"]
[Black "azikom"]
[Result "0-1"]
[WhiteElo "2307"]
[BlackElo "2607"]
[TimeControl "180+1"]
[EndTime "15:03:35 PDT"]
[Termination "azikom won on time"]

1. e4 {[%clk 0:02:59.2]} 1... c5 {[%clk 0:03:00.3]} 2. Nf3 {[%clk 0:02:59.1]}
2... e6 {[%clk 0:03:01]} 3. g3 {[%clk 0:02:58.7]} 3... Nc6 {[%clk 0:03:00.1]} 4.
Bg2 {[%clk 0:02:58.8]} 4... b5 {[%clk 0:03:00.2]} 5. O-O {[%clk 0:02:58.6]} 5...
Bb7 {[%clk 0:03:00.1]} 6. d4 {[%clk 0:02:57.6]} 6... cxd4 {[%clk 0:02:59.5]} 7.
Nxd4 {[%clk 0:02:58.5]} 7... a6 {[%clk 0:02:57.6]} 8. Nc3 {[%clk 0:02:53.1]}
8... Nxd4 {[%clk 0:02:56.6]} 9. Qxd4 {[%clk 0:02:53]} 9... Ne7 {[%clk
0:02:57.2]} 10. Re1 {[%clk 0:02:50.1]} 10... Nc6 {[%clk 0:02:56]} 11. Qd1 {[%clk
0:02:42.3]} 11... Bc5 {[%clk 0:02:55.9]} 12. Qh5 {[%clk 0:02:35.5]} 12... Qb6
{[%clk 0:02:53.7]} 13. Be3 {[%clk 0:02:28.8]} 13... Bxe3 {[%clk 0:02:38.1]} 14.
Rxe3 {[%clk 0:02:29.7]} 14... O-O {[%clk 0:02:38.2]} 15. Rd1 {[%clk 0:02:24.4]}
15... Rad8 {[%clk 0:02:28.1]} 16. e5 {[%clk 0:02:21.9]} 16... Qc7 {[%clk
0:02:19.1]} 17. Rd6 {[%clk 0:02:03.2]} 17... f5 {[%clk 0:02:08.4]} 18. f4 {[%clk
0:01:43]} 18... Ne7 {[%clk 0:01:34.6]} 19. Bxb7 {[%clk 0:01:36.3]} 19... Qxb7
{[%clk 0:01:34.3]} 20. Qf3 {[%clk 0:01:36.2]} 20... Qa7 {[%clk 0:01:33.9]} 21.
Qf2 {[%clk 0:01:36.3]} 21... Nc8 {[%clk 0:01:17.8]} 22. Rd2 {[%clk 0:01:35.9]}
22... Qc7 {[%clk 0:01:13.5]} 23. Red3 {[%clk 0:01:33.6]} 23... Nb6 {[%clk
0:01:11.5]} 24. b3 {[%clk 0:01:27.8]} 24... Rf7 {[%clk 0:01:04.6]} 25. a4 {[%clk
0:01:21.3]} 25... bxa4 {[%clk 0:01:03.5]} 26. Nxa4 {[%clk 0:01:17.4]} 26... Nxa4
{[%clk 0:01:03.5]} 27. bxa4 {[%clk 0:01:18.3]} 27... h6 {[%clk 0:00:58.4]} 28.
Qd4 {[%clk 0:01:12.5]} 28... Rb8 {[%clk 0:00:50.4]} 29. Qd6 {[%clk 0:01:04.7]}
29... Rb1+ {[%clk 0:00:48.8]} 30. Rd1 {[%clk 0:01:05]} 30... Qxc2 {[%clk
0:00:45.2]} 31. Rxb1 {[%clk 0:00:50.9]} 31... Qxb1+ {[%clk 0:00:46.1]} 32. Rd1
{[%clk 0:00:50.3]} 32... Qb3 {[%clk 0:00:46.1]} 33. Qd4 {[%clk 0:00:42.7]} 33...
g5 {[%clk 0:00:40.7]} 34. Rd3 {[%clk 0:00:37.6]} 34... Qb1+ {[%clk 0:00:39.1]}
35. Rd1 {[%clk 0:00:37.7]} 35... Qc2 {[%clk 0:00:39.1]} 36. Rd2 {[%clk
0:00:36.6]} 36... Qc1+ {[%clk 0:00:37.8]} 37. Rd1 {[%clk 0:00:36.6]} 37... Qc6
{[%clk 0:00:38.4]} 38. fxg5 {[%clk 0:00:27.2]} 38... hxg5 {[%clk 0:00:38.1]} 39.
Rb1 {[%clk 0:00:22.8]} 39... Kg7 {[%clk 0:00:32.9]} 40. a5 {[%clk 0:00:22.7]}
40... Qc2 {[%clk 0:00:29.7]} 41. Rd1 {[%clk 0:00:20.3]} 41... f4 {[%clk
0:00:27]} 42. Qd2 {[%clk 0:00:17.3]} 42... Qxd2 {[%clk 0:00:25.7]} 43. Rxd2
{[%clk 0:00:17.4]} 43... fxg3 {[%clk 0:00:26.6]} 44. hxg3 {[%clk 0:00:17.8]}
44... Kg6 {[%clk 0:00:25.5]} 45. Rd6 {[%clk 0:00:16.3]} 45... Rf5 {[%clk
0:00:25.1]} 46. Rxd7 {[%clk 0:00:13.2]} 46... Rxe5 {[%clk 0:00:25.2]} 47. Rd6
{[%clk 0:00:13.5]} 47... Rxa5 {[%clk 0:00:24.8]} 48. Rxe6+ {[%clk 0:00:13.7]}
48... Kf5 {[%clk 0:00:25.2]} 49. Re3 {[%clk 0:00:10.8]} 49... Ra2 {[%clk
0:00:24.8]} 50. Rc3 {[%clk 0:00:08.3]} 50... a5 {[%clk 0:00:24.8]} 51. Rc4
{[%clk 0:00:07.1]} 51... a4 {[%clk 0:00:23.2]} 52. g4+ {[%clk 0:00:07.4]} 52...
Ke5 {[%clk 0:00:22.8]} 53. Rc5+ {[%clk 0:00:07.6]} 53... Kf4 {[%clk 0:00:22.6]}
54. Rc4+ {[%clk 0:00:07.5]} 54... Kg3 {[%clk 0:00:22.9]} 55. Kf1 {[%clk
0:00:07]} 55... Kf3 {[%clk 0:00:22.1]} 56. Ke1 {[%clk 0:00:04.6]} 56... a3
{[%clk 0:00:22]} 57. Ra4 {[%clk 0:00:02.2]} 57... Kg3 {[%clk 0:00:20.6]} 0-1